bitfinex/quotes_BTCUSD_20250410
["timestamp","ask_amount","ask_price","bid_price","bid_amount"]
[1744317735449,0.01460657,79724.0,79711.0,0.32081695]
[1744317735679,6.572e-05,79724.0,79711.0,0.32081695]
[1744317735860,6.572e-05,79724.0,79711.0,0.33306613]
[1744317736053,6.572e-05,79724.0,79711.0,0.67306613]
[1744317737492,6.572e-05,79724.0,79711.0,0.79997371]
[1744317737669,6.572e-05,79724.0,79711.0,0.84577371]
[1744317738582,6.572e-05,79724.0,79711.0,0.71886613]
[1744317741495,6.572e-05,79724.0,79711.0,0.84577371]
[1744317741742,6.572e-05,79724.0,79723.0,0.263411]
[1744317741945,6.572e-05,79724.0,79723.0,0.52250908]
[1744317742156,6.572e-05,79724.0,79723.0,0.86250908]
[1744317742715,6.572e-05,79724.0,79723.0,0.98941666]
[1744317745572,6.572e-05,79724.0,79723.0,1.08941666]
[1744317759877,6.572e-05,79724.0,79723.0,0.76680908]
[1744317772877,6.572e-05,79724.0,79723.0,0.42680908]
[1744317778490,6.572e-05,79724.0,79723.0,0.76680908]
[1744317778647,6.572e-05,79724.0,79723.0,0.81650908]
[1744317779479,6.572e-05,79724.0,79723.0,0.94341666]
[1744317779693,6.572e-05,79724.0,79723.0,1.03110731]
[1744317779888,6.572e-05,79724.0,79723.0,0.99231666]
[1744317780091,6.572e-05,79724.0,79723.0,1.03110707]
[1744317780871,6.572e-05,79724.0,79723.0,0.99231666]
[1744317784125,6.572e-05,79724.0,79723.0,1.03107699]
[1744317784739,7.2e-07,79724.0,79723.0,1.03107699]
[1744317785073,7.2e-07,79725.0,79724.0,0.401343]
[1744317785252,7.2e-07,79725.0,79724.0,0.56701091]
[1744317785428,7.2e-07,79725.0,79724.0,0.53516868]
[1744317785619,7.2e-07,79725.0,79724.0,0.57389854]
[1744317786134,7.2e-07,79729.0,79728.0,0.012542]
[1744317786302,0.00042047,79729.0,79728.0,0.22807944]
[1744317786648,0.00042047,79729.0,79728.0,0.48584954]
[1744317788631,0.00042047,79729.0,79728.0,0.44711968]
[1744317797304,0.00042047,79729.0,79728.0,0.78711968]
[1744317802759,4.7e-07,79732.0,79731.0,0.703385]
[1744317802957,5.835e-05,79732.0,79731.0,0.87929258]
[1744317803134,5.835e-05,79732.0,79731.0,0.97330094]
[1744317804020,3.5e-07,79734.0,79733.0,0.603378]
[1744317804249,3.5e-07,79734.0,79733.0,0.82504958]
[1744317804453,3.5e-07,79734.0,79733.0,0.7864024]
[1744317807325,3.5e-07,79734.0,79733.0,0.82502861]
[1744317812019,3.5e-07,79738.0,79737.0,0.703365]
[1744317812246,3.5e-07,79738.0,79737.0,0.88573763]
[1744317812453,3.5e-07,79738.0,79737.0,0.92436384]
[1744317812908,3.5e-07,79738.0,79737.0,0.97306384]
[1744317813364,3.5e-07,79744.0,79743.0,0.703345]
[1744317813570,1.5e-07,79756.0,79755.0,0.012538]
[1744317813768,1.5e-07,79756.0,79755.0,2.12035962]
[1744317813932,0.00011592,79756.0,79755.0,2.11785258]
[1744317814123,0.00011592,79756.0,79755.0,2.12416437]
[1744317815111,0.00011592,79756.0,79755.0,2.1334059]
[1744317815316,0.00011592,79756.0,79755.0,2.17200203]
[1744317815535,0.00011592,79756.0,79755.0,2.1334059]
[1744317815948,0.00011592,79756.0,79755.0,2.17198443]
[1744317816570,0.000168,79768.0,79758.0,0.400237]
[1744317816571,9.2e-07,79759.0,79758.0,0.400237]
[1744317816792,9.2e-07,79759.0,79758.0,0.68270458]
[1744317817002,9.2e-07,79759.0,79758.0,0.72127266]
[1744317817210,9.2e-07,79759.0,79758.0,0.72743592]
[1744317817861,8.2e-07,79766.0,79765.0,0.803272]
[1744317818081,8.2e-07,79768.0,79767.0,0.650566]
[1744317818305,8.2e-07,79768.0,79767.0,0.77747358]
[1744317818534,8.2e-07,79768.0,79767.0,0.78360564]
[1744317819226,0.0016687,79789.0,79788.0,0.263197]
[1744317819439,0.00179454,79789.0,79788.0,0.263197]
[1744317819651,0.00179454,79789.0,79788.0,0.26932906]
[1744317825833,0.01432754,79789.0,79788.0,0.00613206]
[1744317826058,0.00179454,79789.0,79786.0,0.34]
[1744317826437,0.00179454,79789.0,79787.0,0.00583265]
[1744317826662,0.00179454,79789.0,79787.0,0.25649765]
[1744317828348,0.00179454,79789.0,79787.0,0.00583265]
[1744317830111,0.25245754,79789.0,79787.0,0.00583265]
[1744317830336,0.02707385,79788.0,79787.0,0.00583265]
[1744317830560,0.00179454,79789.0,79785.0,0.250672]
[1744317830769,0.00179454,79789.0,79786.0,0.00583265]
[1744317832060,0.00179454,79789.0,79786.0,0.01836565]
[1744317833426,0.00179454,79789.0,79786.0,0.00583265]
[1744317833947,0.2632,79787.0,79786.0,0.00583265]
[1744317834367,0.2632,79787.0,79779.0,0.012534]
[1744317834570,0.2632,79787.0,79780.0,0.263221]
[1744317834771,0.2632,79787.0,79780.0,0.26909898]
[1744317834984,0.2632,79787.0,79781.0,0.263217]
[1744317835604,0.2632,79787.0,79782.0,0.00587798]
[1744317836004,0.25245754,79789.0,79782.0,0.00587798]
[1744317836005,0.00179454,79789.0,79786.0,0.012533]
[1744317836200,0.00179454,79789.0,79787.0,0.0058978]
[1744317836839,0.00179454,79789.0,79785.0,0.012533]
[1744317837051,0.00179454,79789.0,79786.0,0.0058978]
[1744317837367,0.00179454,79789.0,79788.0,0.012533]
[1744317838011,0.00179454,79789.0,79788.0,0.0184308]
[1744317839372,0.00179454,79789.0,79788.0,0.48533838]
[1744317839600,0.00179454,79789.0,79788.0,0.64065838]
[1744317844551,0.00179454,79789.0,79788.0,0.69045838]
[1744317847044,0.00179454,79789.0,79788.0,0.5635508]
[1744317855418,0.00179454,79789.0,79788.0,0.69045838]
[1744317856403,0.00179454,79789.0,79788.0,0.71372208]
[1744317858670,0.00161759,79789.0,79788.0,0.71372208]
[1744317859306,0.00161759,79789.0,79788.0,0.5868145]
[1744317859512,0.00161759,79789.0,79788.0,0.5370145]
[1744317860142,0.00161759,79789.0,79788.0,0.5137508]
[1744317863369,0.00161759,79789.0,79788.0,0.3584308]
[1744317874455,0.00148034,79789.0,79788.0,0.3584308]
[1744317874683,0.00148034,79789.0,79788.0,0.5135908]
[1744317884653,0.00148034,79789.0,79788.0,0.3584308]
[1744317885756,0.00148034,79789.0,79788.0,0.0058978]
[1744317886193,0.00148034,79789.0,79785.0,0.250671]
[1744317886547,0.00148034,79789.0,79785.0,0.263204]
[1744317887003,0.25214234,79789.0,79785.0,0.012533]
[1744317887134,0.25214334,79789.0,79785.0,0.012533]
[1744317887356,0.00148034,79789.0,79785.0,0.012533]
[1744317887557,0.01401334,79789.0,79783.0,0.012533]
[1744317887763,0.00148034,79789.0,79785.0,0.250672]
[1744317888009,0.00148034,79789.0,79785.0,0.263205]
[1744317888533,0.00148034,79789.0,79782.0,0.25068]
[1744317888739,0.012533,79787.0,79782.0,0.25068]
[1744317889619,0.250678,79784.0,79780.0,0.012534]
[1744317889939,0.263208,79785.0,79780.0,0.263221]
[1744317890121,0.263212,79783.0,79778.0,0.250694]
[1744317890333,0.250679,79783.0,79779.0,0.250691]
[1744317890936,0.012532,79790.0,79780.0,0.012534]
[1744317891145,0.25065,79793.0,79788.0,0.012533]
[1744317891343,0.250648,79794.0,79788.0,0.012533]
[1744317891544,0.263183,79793.0,79787.0,0.263198]
[1744317892496,0.250654,79792.0,79787.0,0.012533]
[1744317892713,0.263186,79792.0,79786.0,0.012533]
[1744317893775,0.263189,79791.0,79785.0,0.2632]
[1744317894003,0.263197,79788.0,79782.0,0.263214]
[1744317894225,0.012533,79786.0,79776.0,0.012535]
[1744317894388,0.250685,79782.0,79777.0,0.26323]
[1744317895115,0.250685,79782.0,79758.0,0.46147477]
[1744317895116,0.012535,79773.0,79768.0,0.012536]
[1744317895319,0.263242,79775.0,79770.0,0.250719]
[1744317895538,0.250701,79777.0,79771.0,0.26325]
[1744317895695,0.263235,79777.0,79771.0,0.012535]
[1744317896096,0.250708,79774.0,79770.0,0.263255]
[1744317896301,0.263239,79776.0,79770.0,0.263255]
[1744317896502,0.250707,79775.0,79770.0,0.263255]
[1744317898942,0.250707,79775.0,79769.0,0.012536]
[1744317898943,0.012536,79770.0,79769.0,0.34]
[1744317899234,0.25072,79771.0,79769.0,0.34]
[1744317900102,0.250716,79772.0,79767.0,0.012536]
[1744317900255,0.26324,79775.0,79770.0,0.250718]
[1744317900455,0.01454085,79776.0,79771.0,0.250715]
[1744317900659,0.39215243,79776.0,79771.0,0.26325]
[1744317901082,0.14144843,79776.0,79772.0,0.263247]
[1744317901422,0.39215143,79776.0,79773.0,0.00479828]
[1744317901631,0.250707,79775.0,79773.0,0.00479828]
[1744317901841,0.26524385,79776.0,79771.0,0.26325]
[1744317902023,0.263231,79778.0,79774.0,0.00497449]
[1744317902316,0.263231,79778.0,79775.0,0.00497449]
[1744317902524,0.2507,79777.0,79772.0,0.263247]
[1744317902780,0.2507,79777.0,79773.0,0.00497449]
[1744317902962,0.250697,79778.0,79773.0,0.25568349]
[1744317903324,0.2507,79777.0,79773.0,0.25568349]
[1744317904836,0.2507,79777.0,79773.0,0.25558046]
[1744317906062,0.263243,79774.0,79773.0,0.00487146]
[1744317906261,0.250732,79767.0,79761.0,0.34]
[1744317906465,0.250735,79766.0,79761.0,0.34]
[1744317906670,0.01454085,79761.0,79756.0,0.0003358]
[1744317906887,0.263299,79757.0,79756.0,0.0003358]
[1744317907301,0.40474743,79757.0,79756.0,0.0003358]
[1744317908541,0.01454085,79757.0,79756.0,0.0003358]
[1744317909352,0.02707885,79757.0,79756.0,0.0003358]
[1744317909498,0.02347885,79757.0,79756.0,0.0003358]
[1744317909964,0.012538,79757.0,79756.0,0.0003358]
[1744317910122,0.13944558,79757.0,79756.0,0.0003358]
[1744317911285,0.15219936,79757.0,79756.0,0.0003358]
[1744317911603,0.16674021,79757.0,79756.0,0.0003358]
[1744317911807,0.15398643,79757.0,79756.0,0.0003358]
[1744317915191,0.14144843,79757.0,79756.0,0.0003358]
[1744317915601,0.15398643,79757.0,79756.0,0.0003358]
[1744317916962,0.250757,79759.0,79756.0,0.0003358]
[1744317918194,0.25076,79758.0,79756.0,0.0003358]
[1744317919121,0.012538,79757.0,79756.0,0.0003358]
[1744317933057,0.005,79783.0,79756.0,0.0003358]
[1744317933274,0.14144843,79769.0,79756.0,0.0003358]
[1744317934523,4.192e-05,79770.0,79757.0,0.0945]
[1744317934722,4.192e-05,79770.0,79758.0,0.0484]
[1744317935565,4.192e-05,79770.0,79760.0,0.0484]
[1744317936132,4.192e-05,79770.0,79761.0,0.02337345]
[1744317936559,4.192e-05,79770.0,79762.0,0.02337345]
[1744317937008,0.25076392,79770.0,79764.0,0.012536]
[1744317937395,0.250725,79769.0,79765.0,0.02337345]
[1744317937567,0.012536,79768.0,79765.0,0.02337345]
[1744317937779,0.012536,79767.0,79766.0,0.02337345]
[1744317938155,0.263264,79768.0,79766.0,0.02337345]
[1744317938354,0.26329892,79770.0,79766.0,0.02337345]
[1744317938758,0.250725,79769.0,79767.0,0.02337345]
[1744317938959,0.263261,79769.0,79768.0,0.07177345]
[1744317939188,0.012536,79769.0,79768.0,0.07177345]
[1744317939507,0.012536,79769.0,79768.0,0.0484]
[1744317941485,0.263279,79763.0,79762.0,0.06877345]
[1744317942050,0.263279,79763.0,79762.0,0.0454]
[1744317942821,0.263279,79763.0,79756.0,0.0477358]
[1744317942822,0.250754,79760.0,79756.0,0.0477358]
[1744317943009,0.250754,79760.0,79756.0,0.3110368]
[1744317943736,0.263284,79762.0,79757.0,0.250759]
[1744317943985,0.250761,79757.0,79756.0,0.0477358]
[1744317944192,0.250761,79757.0,79756.0,0.0003358]
[1744317944193,0.40474743,79757.0,79756.0,0.0003358]
[1744317948694,0.40474743,79757.0,79756.0,0.0477358]
[1744317951773,0.431637,79761.0,79757.0,0.250761]
[1744317951774,0.4191,79761.0,79757.0,0.250761]
[1744317951997,0.4191,79761.0,79758.0,0.012537]
[1744317952212,0.4191,79761.0,79757.0,0.0476]
[1744317952421,0.4191,79761.0,79758.0,0.02337161]
[1744317952839,0.250752,79760.0,79759.0,0.02337161]
[1744317953478,0.431637,79761.0,79759.0,0.02337161]
[1744317953694,0.4191,79761.0,79758.0,0.02337161]
[1744317954334,0.263285,79762.0,79758.0,0.02337161]
[1744317956956,0.250731,79767.0,79759.0,0.250755]
[1744317957191,0.012536,79764.0,79759.0,0.250755]
[1744317957419,0.263275,79764.0,79758.0,0.03590861]
[1744317957611,0.263275,79764.0,79759.0,0.02337161]
[1744317958582,0.12690758,79765.0,79761.0,0.263283]
[1744317958799,0.39018058,79765.0,79759.0,0.02337161]
[1744317959018,0.12690758,79765.0,79762.0,0.012537]
[1744317959231,0.12690758,79765.0,79762.0,0.263279]
[1744317960373,0.14144843,79765.0,79764.0,0.250739]
[1744317960595,0.14144843,79765.0,79764.0,0.263275]
[1744317960848,0.01454085,79774.0,79769.0,0.263259]
[1744317961775,0.06562209,79779.0,79769.0,0.38533061]
[1744317964534,0.01454085,79784.0,79769.0,0.38533061]
[1744317964928,0.01454085,79782.0,79769.0,0.38533061]
[1744317966275,0.26522585,79782.0,79769.0,0.38533061]
[1744317966502,0.01454085,79782.0,79769.0,0.38533061]
[1744317966726,0.012535,79773.0,79768.0,0.02337161]
[1744317966939,0.01454085,79775.0,79769.0,0.012536]
[1744317967359,0.26524885,79775.0,79769.0,0.012536]
[1744317968711,0.01454085,79773.0,79769.0,0.012536]
[1744317969134,0.01454085,79774.0,79769.0,0.012536]
[1744317969693,0.26525085,79774.0,79769.0,0.012536]
[1744317970792,0.01454085,79775.0,79769.0,0.012536]
[1744317972462,0.26524785,79775.0,79769.0,0.012536]
[1744317973343,0.01454085,79775.0,79769.0,0.012536]
[1744317973589,0.250688,79781.0,79769.0,0.012536]
[1744317973799,0.01454085,79785.0,79769.0,0.108036]
[1744317974178,0.01454085,79787.0,79769.0,0.108036]
[1744317974593,0.01454085,79787.0,79769.0,0.13139321]
[1744317975233,0.43307296,79789.0,79769.0,0.13139321]
[1744317975637,0.01454085,79788.0,79769.0,0.13139321]
[1744317977263,0.26520785,79788.0,79769.0,0.13139321]
[1744317979669,0.250668,79787.0,79769.0,0.13139321]
[1744317983162,0.250672,79786.0,79769.0,0.13139321]
[1744317984758,0.250698,79778.0,79769.0,0.13139321]
[1744317984969,0.2507,79777.0,79769.0,0.13139321]
[1744317985196,0.250698,79778.0,79769.0,0.13139321]
[1744317985763,0.250698,79778.0,79769.0,0.108036]
[1744317986759,0.250701,79777.0,79769.0,0.108036]
[1744317986977,0.250704,79776.0,79769.0,0.060036]
[1744317987193,0.250696,79778.0,79769.0,0.060036]
[1744317987415,0.2507,79777.0,79769.0,0.060036]
[1744317987628,0.01454085,79774.0,79768.0,0.250725]
[1744317987817,0.01454085,79774.0,79764.0,0.0498]
[1744317987818,0.250723,79769.0,79764.0,0.012536]
[1744317988238,0.012535,79773.0,79766.0,0.250731]
[1744317988239,0.263251,79772.0,79766.0,0.250731]
[1744317988674,0.250716,79772.0,79766.0,0.250731]
[1744317988827,0.250719,79771.0,79766.0,0.250731]
[1744317989005,0.012535,79773.0,79766.0,0.250731]
[1744317989853,0.012535,79773.0,79769.0,0.250723]
[1744317990054,0.26525085,79774.0,79769.0,0.250723]
[1744317990253,0.26525085,79774.0,79769.0,0.263259]
[1744317990432,0.27778585,79774.0,79769.0,0.263259]
[1744317991127,0.01454085,79775.0,79769.0,0.263259]
[1744317992013,0.26524685,79775.0,79769.0,0.263259]
[1744317992231,0.27778185,79775.0,79769.0,0.263259]
[1744317992465,0.250709,79774.0,79769.0,0.263259]
[1744317992938,0.01454085,79776.0,79769.0,0.312459]
[1744317993169,0.01454085,79776.0,79769.0,0.360459]
[1744317993398,0.27776285,79781.0,79769.0,0.360459]
[1744317993842,0.27776285,79781.0,79769.0,0.38389416]
[1744317994144,0.01454085,79779.0,79769.0,0.38389416]
[1744317994585,0.02707485,79779.0,79769.0,0.33589416]
[1744317994813,0.01454085,79776.0,79769.0,0.263259]
[1744317995180,0.01454085,79778.0,79769.0,0.263259]
[1744317995624,0.27777285,79778.0,79769.0,0.263259]
[1744317996208,0.02707485,79778.0,79769.0,0.263259]
[1744317997669,0.27777185,79778.0,79769.0,0.263259]
[1744317997815,0.01454085,79776.0,79769.0,0.263259]
[1744317998789,0.02707485,79777.0,79769.0,0.263259]
[1744317998979,0.01454085,79774.0,79769.0,0.263259]
[1744317999388,0.01454085,79777.0,79769.0,0.263259]
[1744317999705,0.26523185,79780.0,79769.0,0.263259]
[1744318000183,0.012533,79787.0,79769.0,0.33429485]
[1744318000410,0.012533,79786.0,79769.0,0.38169485]
[1744318000628,0.01454085,79782.0,79769.0,0.38169485]
[1744318002346,0.01454085,79783.0,79769.0,0.38169485]
[1744318003032,0.01454085,79784.0,79769.0,0.38169485]
[1744318003461,0.01454085,79785.0,79769.0,0.38169485]
[1744318003945,0.250678,79784.0,79769.0,0.38169485]
[1744318004139,0.01454085,79783.0,79769.0,0.38169485]
[1744318006630,0.012534,79781.0,79769.0,0.38169485]
[1744318007081,0.250685,79782.0,79769.0,0.38169485]
[1744318008646,0.250688,79781.0,79769.0,0.38169485]
[1744318009353,0.263222,79781.0,79769.0,0.38169485]
[1744318009548,0.25069,79780.0,79769.0,0.38169485]
[1744318010043,0.263222,79781.0,79769.0,0.33429485]
[1744318010044,0.02707485,79779.0,79769.0,0.33429485]
[1744318010175,0.01454085,79777.0,79769.0,0.33429485]
[1744318010891,0.012534,79779.0,79769.0,0.33429485]
[1744318012483,0.01454085,79778.0,79769.0,0.33429485]
[1744318012717,0.26523785,79778.0,79769.0,0.33429485]
[1744318014023,0.01454085,79778.0,79769.0,0.33429485]
[1744318014518,0.25076192,79770.0,79769.0,0.02343585]
[1744318014725,0.40474635,79770.0,79769.0,0.02343585]
[1744318014933,0.40474635,79770.0,79759.0,0.250755]
[1744318014934,0.250738,79765.0,79759.0,0.250755]
[1744318015105,0.37764558,79765.0,79759.0,0.250755]
[1744318015304,0.37764558,79765.0,79760.0,0.263287]
[1744318016080,0.01454085,79764.0,79760.0,0.263287]
[1744318016291,0.14144843,79764.0,79760.0,0.012537]
[1744318016492,0.14144843,79764.0,79763.0,0.012537]
[1744318017157,4.192e-05,79770.0,79769.0,0.309959]
[1744318017370,0.14149035,79770.0,79769.0,0.309959]
[1744318017587,4.192e-05,79770.0,79769.0,0.309959]
[1744318019735,4.192e-05,79770.0,79769.0,0.357459]
[1744318020839,4.192e-05,79770.0,79769.0,0.852179]
[1744318021047,4.192e-05,79770.0,79769.0,0.87559956]
[1744318022159,4.192e-05,79770.0,79769.0,1.00250714]
[1744318022374,0.0015224,79789.0,79788.0,0.360997]
[1744318022585,0.00156433,79789.0,79788.0,0.360997]
[1744318022973,0.00156433,79789.0,79788.0,0.38441756]
[1744318025358,0.00156433,79789.0,79788.0,0.72441756]
[1744318035386,0.00156433,79789.0,79788.0,0.700997]
[1744318035939,0.00156433,79789.0,79788.0,0.651297]
[1744318038224,0.00156433,79789.0,79788.0,0.67459903]
[1744318042150,0.00156433,79789.0,79788.0,0.72259903]
[1744318042369,0.00156433,79789.0,79788.0,0.699297]
[1744318043392,0.00156433,79789.0,79788.0,0.72259847]
[1744318051277,0.00156433,79789.0,79788.0,0.87715847]
[1744318052879,0.00156433,79789.0,79788.0,0.82915847]
[1744318053029,0.00156433,79789.0,79788.0,0.17786147]
[1744318053248,0.00156433,79789.0,79788.0,0.15456]
[1744318053485,0.00156433,79789.0,79788.0,0.167093]
[1744318055263,0.00156433,79789.0,79788.0,0.012533]
[1744318056581,0.00156433,79789.0,79788.0,0.059033]
[1744318057256,0.00156433,79789.0,79788.0,0.08243564]
[1744318059115,0.00156433,79789.0,79788.0,0.059033]
[1744318062697,0.00156433,79789.0,79788.0,0.213593]
[1744318070785,0.00156433,79789.0,79788.0,0.167093]
[1744318073361,0.00156433,79789.0,79788.0,0.260393]
[1744318080743,0.00156433,79789.0,79788.0,0.72730058]
[1744318080744,3.3e-07,79789.0,79788.0,0.72730058]
[1744318080967,2.3e-07,79795.0,79794.0,0.652577]
[1744318081404,0.0001679,79816.0,79794.0,0.652577]
[1744318081405,0.06562612,79818.0,79817.0,0.263101]
[1744318081845,0.06604545,79818.0,79817.0,0.263101]
[1744318082060,0.06604545,79818.0,79817.0,0.28649151]
[1744318089205,0.00042336,79818.0,79817.0,0.28649151]
[1744318093594,0.00042336,79818.0,79817.0,0.263101]
[1744318093957,0.00042336,79818.0,79817.0,0.28649151]
[1744318094527,0.00042336,79818.0,79817.0,0.263101]
[1744318096175,0.00042336,79818.0,79817.0,0.308501]
[1744318096668,0.00042336,79818.0,79817.0,0.33189151]
[1744318097026,0.00042336,79818.0,79817.0,0.308501]
[1744318101293,0.00042336,79818.0,79817.0,0.33189151]
[1744318101743,0.00042336,79818.0,79817.0,0.308501]
[1744318102990,0.00042336,79818.0,79817.0,0.33189151]
[1744318103190,0.00042336,79818.0,79817.0,0.308501]
[1744318103829,0.00042336,79818.0,79817.0,0.33189151]
[1744318106770,0.00042336,79818.0,79817.0,0.67189151]
[1744318108698,0.00042336,79818.0,79817.0,0.68357393]
[1744318110270,0.00042336,79818.0,79817.0,0.63817393]
[1744318110398,0.00042336,79818.0,79817.0,0.37507293]
[1744318110597,0.00042336,79818.0,79817.0,0.38760093]
[1744318111397,0.00042336,79818.0,79817.0,0.37507293]
[1744318111808,0.00042336,79818.0,79817.0,0.38760093]
[1744318113714,0.00042336,79818.0,79817.0,0.43410093]
[1744318117799,0.00042336,79818.0,79817.0,0.56100851]
[1744318118458,0.00042336,79818.0,79817.0,0.61080851]
[1744318125268,2.6e-07,79821.0,79820.0,0.012528]
[1744318125481,0.00010009,79821.0,79820.0,0.86476688]
[1744318125690,0.00010009,79821.0,79820.0,0.88565264]
[1744318125894,0.00010009,79821.0,79820.0,0.89733506]
[1744318127146,0.00727799,79846.0,79845.0,0.263009]
[1744318127548,0.00737779,79846.0,79845.0,0.263009]
[1744318127882,0.00737779,79846.0,79845.0,0.29808193]
[1744318128521,0.00737779,79846.0,79845.0,0.68528193]
[1744318128732,0.00737779,79846.0,79845.0,0.81218951]
[1744318129066,0.00737779,79846.0,79845.0,0.973112]
[1744318131490,0.00727517,79846.0,79845.0,0.973112]
[1744318132945,0.00727517,79846.0,79845.0,0.873112]
[1744318133131,0.00727517,79846.0,79845.0,0.63808193]
[1744318134326,0.00727517,79846.0,79845.0,0.37507293]
[1744318134932,0.00727517,79846.0,79845.0,0.37591451]
[1744318135917,0.00727517,79846.0,79845.0,0.38759693]
[1744318153729,0.00727517,79846.0,79845.0,0.03507293]
[1744318154162,0.21440675,79846.0,79845.0,0.03507293]
[1744318154365,0.2289476,79846.0,79845.0,0.01168242]
[1744318155007,0.012525,79840.0,79836.0,0.03503187]
[1744318155209,0.012525,79837.0,79836.0,0.03503187]
[1744318155411,0.12690758,79839.0,79836.0,0.01168242]
[1744318155584,0.37741358,79839.0,79836.0,0.01168242]
[1744318155794,0.250507,79838.0,79836.0,0.01168242]
[1744318155991,0.263031,79839.0,79836.0,0.01168242]
[1744318156217,0.012525,79839.0,79836.0,0.01168242]
[1744318156439,0.263031,79839.0,79836.0,0.01168242]
[1744318156871,0.263031,79839.0,79837.0,0.01168242]
[1744318157927,0.263031,79839.0,79834.0,0.263042]
[1744318158676,0.250509,79838.0,79834.0,0.012525]
[1744318158877,0.263034,79838.0,79833.0,0.263046]
[1744318159339,0.263031,79839.0,79834.0,0.263042]
[1744318160250,0.250506,79839.0,79834.0,0.263042]
[1744318160476,0.012525,79840.0,79836.0,0.250511]
[1744318160681,0.263027,79840.0,79835.0,0.012525]
[1744318160885,0.250506,79839.0,79834.0,0.263042]
[1744318161863,0.263031,79839.0,79834.0,0.263042]
[1744318162082,0.01979917,79846.0,79834.0,0.263042]
[1744318162083,0.01979917,79846.0,79840.0,0.250499]
[1744318162331,0.01979917,79846.0,79839.0,0.012525]
[1744318162332,0.263014,79844.0,79839.0,0.012525]
[1744318162525,0.263014,79844.0,79834.0,0.263043]
[1744318162526,0.012524,79841.0,79834.0,0.263043]
[1744318162902,0.250502,79840.0,79835.0,0.250514]
[1744318163081,0.263027,79840.0,79835.0,0.263039]
[1744318163485,0.263027,79840.0,79836.0,0.250512]
[1744318164349,0.012524,79841.0,79837.0,0.250507]
[1744318164583,0.263023,79841.0,79837.0,0.250507]
[1744318166350,0.263023,79841.0,79836.0,0.012525]
[1744318166564,0.250502,79840.0,79836.0,0.012525]
[1744318168153,0.250502,79840.0,79836.0,0.263037]
[1744318168356,0.250506,79839.0,79835.0,0.27385263]
[1744318168765,0.263035,79837.0,79834.0,0.02333863]
[1744318169174,0.263035,79837.0,79832.0,0.27386263]
[1744318169537,0.263035,79837.0,79833.0,0.02333863]
[1744318170354,0.263035,79837.0,79832.0,0.27386263]
[1744318170560,0.012525,79838.0,79834.0,0.250519]
[1744318170770,0.250502,79840.0,79834.0,0.250519]
[1744318170771,0.250502,79840.0,79835.0,0.250513]
[1744318171391,0.250502,79840.0,79835.0,0.27385163]
[1744318172138,0.250502,79840.0,79835.0,0.28637663]
[1744318172343,0.250502,79840.0,79836.0,0.250512]
[1744318172572,0.250513,79836.0,79835.0,0.02333863]
[1744318172780,0.250513,79836.0,79832.0,0.250524]
[1744318173193,0.012525,79837.0,79833.0,0.02334783]
[1744318173393,0.012525,79837.0,79833.0,0.27386883]
[1744318173537,0.263034,79838.0,79834.0,0.02334783]
[1744318174104,0.250494,79842.0,79835.0,0.012525]
[1744318174421,0.263026,79840.0,79835.0,0.263039]
[1744318174550,0.250515,79836.0,79834.0,0.02334783]
[1744318174752,0.263033,79838.0,79834.0,0.02334783]
[1744318175241,0.012525,79836.0,79835.0,0.02334783]
[1744318175442,0.263033,79838.0,79835.0,0.02334783]
[1744318175641,0.250512,79837.0,79835.0,0.02334783]
[1744318176096,0.263033,79838.0,79836.0,0.02334783]
[1744318176463,0.26180832,79838.0,79836.0,0.02334783]
[1744318176673,0.26180832,79838.0,79832.0,0.263049]
[1744318176674,0.250494,79842.0,79837.0,0.250509]
[1744318176991,0.263024,79841.0,79836.0,0.263036]
[1744318177193,0.263024,79841.0,79836.0,0.28638383]
[1744318177715,0.250491,79844.0,79837.0,0.061125]
[1744318177916,0.263016,79843.0,79837.0,0.08447283]
[1744318178213,0.263016,79843.0,79838.0,0.02334783]
[1744318178781,0.263016,79843.0,79837.0,0.061125]
[1744318178782,0.2505,79841.0,79839.0,0.02334783]
[1744318179134,0.263024,79841.0,79839.0,0.02334783]
[1744318179483,0.263024,79841.0,79840.0,0.02334783]
[1744318180089,0.263024,79841.0,79838.0,0.02334783]
[1744318180593,0.263024,79841.0,79839.0,0.02334783]
[1744318180935,0.262024,79841.0,79839.0,0.02334783]
[1744318181139,0.012524,79841.0,79839.0,0.02334783]
[1744318181442,0.263023,79841.0,79840.0,0.02334783]
[1744318182053,0.263021,79842.0,79840.0,0.02334783]
[1744318182551,0.012524,79842.0,79841.0,0.02334783]
[1744318185508,0.012524,79842.0,79838.0,0.250504]
[1744318187041,0.2505,79841.0,79837.0,0.061125]
[1744318187195,0.012524,79843.0,79839.0,0.250503]
[1744318187393,0.263017,79843.0,79838.0,0.250505]
[1744318188612,0.250497,79842.0,79837.0,0.311633]
[1744318188786,0.263017,79843.0,79838.0,0.250505]
[1744318189408,0.263017,79843.0,79838.0,0.26303]
[1744318191570,0.263017,79843.0,79839.0,0.250501]
[1744318191772,0.012524,79844.0,79839.0,0.263026]
[1744318191970,0.012524,79844.0,79840.0,0.250499]
[1744318192365,0.00727517,79846.0,79845.0,0.012524]
[1744318192523,0.00727517,79846.0,79845.0,0.061024]
[1744318194707,0.00727517,79846.0,79845.0,0.0485]
[1744318194910,0.00727517,79846.0,79843.0,0.250488]
[1744318195254,0.00727517,79846.0,79843.0,0.263012]
[1744318196330,0.00727517,79846.0,79844.0,0.250486]
[1744318197296,0.00727517,79846.0,79845.0,0.012524]
[1744318199748,0.00727517,79846.0,79843.0,0.263013]
[1744318200061,0.00727517,79846.0,79844.0,0.012524]
[1744318200265,0.00727517,79846.0,79845.0,0.012524]
[1744318205091,0.00727517,79846.0,79845.0,0.104224]
[1744318205497,0.00727517,79846.0,79845.0,0.444224]
[1744318205884,0.00727517,79846.0,79845.0,0.46755999]
[1744318206559,0.00727517,79846.0,79845.0,0.444224]
[1744318207141,0.00727517,79846.0,79845.0,0.398924]
[1744318214591,0.00727517,79846.0,79845.0,0.34]
[1744318218487,0.012526,79830.0,79829.0,0.0463]
[1744318218689,0.250516,79835.0,79830.0,0.012526]
[1744318219963,0.250516,79835.0,79831.0,0.34]
[1744318220630,0.012525,79836.0,79831.0,0.590527]
[1744318220885,0.250521,79834.0,79830.0,0.34]
[1744318221119,0.38995058,79835.0,79831.0,0.250527]
[1744318221912,0.12690758,79835.0,79831.0,0.250527]
[1744318222177,0.26503685,79842.0,79837.0,0.012525]
[1744318222424,0.26504385,79840.0,79835.0,0.012525]
[1744318222691,0.12690758,79839.0,79836.0,0.250513]